bitfinex/quotes_ETHUSD_20241105
["timestamp","ask_amount","ask_price","bid_price","bid_amount"]
[1730767058478,0.12357071,2405.5,2405.1,0.25686765]
[1730767058774,0.1581,2405.6,2404.9,0.46398158]
[1730767058922,0.12321921,2405.4,2405.0,0.25682949]
[1730767059123,0.12321921,2405.4,2405.1,0.25682949]
[1730767059339,0.12321921,2405.3,2404.9,0.46398158]
[1730767059586,0.1581,2405.6,2405.0,0.25665228]
[1730767059788,0.12321921,2405.2,2405.1,0.25665228]
[1730767059986,0.1581,2405.2,2404.8,0.0598727]
[1730767060154,0.28100859,2405.2,2404.8,0.0598727]
[1730767061043,0.85453532,2405.2,2404.8,0.0598727]
[1730767061268,0.1581,2405.1,2404.8,0.0598727]
[1730767061472,3.0,2405.0,2404.8,0.0598727]
[1730767061685,0.1581,2404.9,2404.8,0.0598727]
[1730767061847,0.7081,2404.9,2404.8,0.0598727]
[1730767062044,1.60489469,2404.9,2404.8,0.0598727]
[1730767062687,1.05489469,2404.9,2404.8,0.0598727]
[1730767064075,0.28055882,2404.9,2404.8,0.0598727]
[1730767064387,0.12245882,2404.9,2404.8,0.0598727]
[1730767064563,0.1581,2405.1,2404.8,0.0598727]
[1730767064758,0.12207431,2405.0,2404.8,0.0598727]
[1730767064964,0.1581,2405.6,2404.8,0.0598727]
[1730767065293,0.12218068,2405.5,2404.8,0.0598727]
[1730767066247,0.12218068,2405.5,2404.9,0.8308]
[1730767066447,0.1581,2405.8,2404.9,0.8308]
[1730767066693,0.12219704,2405.4,2404.9,0.8308]
[1730767066889,0.1581,2405.8,2404.9,0.8308]
[1730767067075,0.12263875,2405.3,2404.9,0.8308]
[1730767067267,0.1581,2405.8,2404.9,0.8308]
[1730767067978,0.12263875,2405.7,2404.9,0.8308]
[1730767074736,0.1581,2406.0,2404.9,0.8308]
[1730767075188,0.12267964,2405.9,2404.9,0.8308]
[1730767077339,0.12267964,2405.9,2405.1,0.7823]
[1730767077699,0.1581,2406.0,2405.1,0.7823]
[1730767078121,0.12275322,2405.9,2405.1,0.7823]
[1730767078551,0.1581,2406.0,2405.1,0.7823]
[1730767079034,0.12275322,2405.9,2405.1,0.7823]
[1730767079236,0.1581,2406.0,2405.1,0.7823]
[1730767079431,0.12275322,2405.8,2405.1,0.7823]
[1730767079623,0.1581,2406.0,2405.1,0.7823]
[1730767079823,0.12275322,2405.7,2405.1,0.7823]
[1730767080026,0.77668109,2406.3,2405.2,4.03525871]
[1730767080200,0.12310481,2405.6,2405.4,0.7956]
[1730767080542,0.77668109,2406.3,2405.4,0.7956]
[1730767080898,0.12312933,2406.2,2405.4,0.7956]
[1730767085350,0.12312933,2406.2,2405.4,0.78831288]
[1730767087777,0.12312933,2406.2,2405.5,4.41409]
[1730767088023,0.12312933,2406.2,2405.8,4.03525871]
[1730767088269,0.61858109,2406.3,2405.8,4.03525871]
[1730767088481,0.61858109,2406.3,2405.9,0.7633]
[1730767090622,0.61858109,2406.3,2405.3,0.8305]
[1730767090623,0.28492209,2406.2,2405.3,0.8305]
[1730767090750,0.28492209,2406.2,2405.4,0.48657587]
[1730767090956,0.28492209,2406.2,2405.5,0.8116]
[1730767095932,0.28492209,2406.2,2405.2,0.8189]
[1730767097437,0.28492209,2406.2,2405.3,0.8189]
[1730767097647,0.28492209,2406.2,2405.5,0.8189]
[1730767097835,0.1654,2406.2,2405.5,0.8189]
[1730767104414,0.61858109,2406.3,2405.5,0.8189]
[1730767104574,0.11954667,2406.1,2405.6,1.1727687]
[1730767104777,0.61858109,2406.3,2405.7,0.2578278]
[1730767105004,0.1195221,2406.2,2405.8,0.25777074]
[1730767105204,0.61858109,2406.3,2405.7,0.51248865]
[1730767105414,0.1195221,2406.1,2405.7,0.51248865]
[1730767105599,0.61858109,2406.3,2405.7,0.51248865]
[1730767105842,0.1195221,2406.2,2405.7,0.51248865]
[1730767106012,0.61858109,2406.3,2405.7,0.51248865]
[1730767106344,0.1195221,2406.1,2405.6,0.8318]
[1730767106544,0.11971045,2406.2,2405.7,0.25777874]
[1730767106747,0.61858109,2406.3,2405.6,0.8318]
[1730767106920,0.61858109,2406.3,2405.7,0.2578062]
[1730767107109,0.11971045,2406.2,2405.6,0.8318]
[1730767107310,0.11971045,2406.2,2405.7,0.25782445]
[1730767107557,0.61858109,2406.3,2405.6,0.8318]
[1730767107847,0.11971045,2406.2,2405.7,0.25783208]
[1730767108007,0.61858109,2406.3,2405.6,0.8318]
[1730767108208,0.11971045,2406.1,2405.7,0.25782535]
[1730767108402,0.61858109,2406.3,2405.6,0.8318]
[1730767108608,0.11971045,2406.2,2405.7,0.25786061]
[1730767108848,0.11971045,2406.2,2405.6,0.8318]
[1730767109050,0.61858109,2406.3,2405.7,0.25784229]
[1730767109254,0.61858109,2406.3,2405.6,0.8318]
[1730767109255,0.11971045,2406.1,2405.6,0.8318]
[1730767109408,0.61858109,2406.3,2405.7,0.25790427]
[1730767109614,0.11971045,2406.0,2405.6,0.8318]
[1730767109839,0.61858109,2406.3,2405.7,0.25791826]
[1730767110045,0.11971045,2405.9,2405.6,0.8318]
[1730767110355,0.61858109,2406.3,2405.7,0.2579071]
[1730767110559,0.61858109,2406.3,2405.8,0.2579071]
[1730767110725,0.11971045,2406.2,2405.6,0.8318]
[1730767110906,0.11971045,2406.2,2405.7,0.25792939]
[1730767111113,0.61858109,2406.3,2405.6,0.8318]
[1730767111313,0.61858109,2406.3,2405.7,0.25793539]
[1730767111625,0.11971045,2406.2,2405.6,0.8318]
[1730767111810,0.61858109,2406.3,2405.7,0.25794481]
[1730767112006,0.11998068,2406.2,2405.8,0.25794481]
[1730767112213,0.61858109,2406.3,2405.6,0.8318]
[1730767112410,0.11998068,2406.2,2405.7,0.25793757]
[1730767112643,0.61858109,2406.3,2405.8,0.25793757]
[1730767112844,0.11998068,2406.1,2405.6,0.8318]
[1730767113051,0.61858109,2406.3,2405.7,0.2579326]
[1730767113278,0.11998068,2406.0,2405.8,0.2579326]
[1730767113463,0.61858109,2406.3,2405.6,0.8318]
[1730767113674,0.11998068,2405.9,2405.6,0.8318]
[1730767113874,0.61858109,2406.3,2405.7,0.25792956]
[1730767114043,0.11998068,2405.8,2405.6,0.8318]
[1730767114249,0.61858109,2406.3,2405.7,0.25793546]
[1730767114487,0.11998068,2405.7,2405.6,0.8318]
[1730767114650,0.61858109,2406.3,2405.6,1.50246043]
[1730767114843,0.61858109,2406.3,2405.7,0.25794036]
[1730767115067,0.61858109,2406.3,2405.6,0.8318]
[1730767115068,0.61858109,2406.3,2405.8,0.25794565]
[1730767115279,0.61858109,2406.3,2405.6,0.8318]
[1730767115457,0.61858109,2406.3,2405.7,0.25794835]
[1730767115668,0.61858109,2406.3,2405.8,0.25794835]
[1730767115881,0.61858109,2406.3,2405.6,0.8318]
[1730767116196,0.61858109,2406.3,2405.7,0.25794309]
[1730767116403,0.61858109,2406.3,2405.8,0.25794309]
[1730767116585,0.61858109,2406.3,2405.6,0.8318]
[1730767116766,0.61858109,2406.3,2405.7,0.6707072]
[1730767117096,0.61858109,2406.3,2405.8,0.25796439]
[1730767117298,0.61858109,2406.3,2405.6,0.8318]
[1730767117796,0.11998068,2406.2,2405.7,0.67117]
[1730767118001,0.11998068,2406.2,2405.8,0.25813634]
[1730767118301,0.61858109,2406.3,2405.9,0.25813634]
[1730767118470,0.11998068,2406.1,2405.7,0.41309959]
[1730767118671,0.11998068,2406.1,2405.6,0.8318]
[1730767118672,0.61858109,2406.3,2405.8,0.25817774]
[1730767118909,0.61858109,2406.3,2405.9,0.25817774]
[1730767119087,0.61858109,2406.3,2405.7,0.41325779]
[1730767119088,0.11998068,2406.2,2405.7,0.41325779]
[1730767119397,0.61858109,2406.3,2405.9,0.8027]
[1730767119608,0.61858109,2406.3,2406.1,0.8027]
[1730767120595,0.61858109,2406.3,2406.2,0.25820906]
[1730767121411,0.61858109,2406.3,2406.1,0.8027]
[1730767122113,0.61858109,2406.3,2405.6,0.8285]
[1730767122284,0.12037367,2406.2,2405.7,0.67134168]
[1730767122499,0.61858109,2406.3,2405.8,0.25820237]
[1730767122673,0.12038186,2406.1,2405.6,0.8285]
[1730767122874,0.61858109,2406.3,2405.7,0.25822371]
[1730767123074,0.61858109,2406.3,2405.8,0.25822371]
[1730767123312,0.12038186,2406.2,2405.6,0.8285]
[1730767123479,0.61858109,2406.3,2405.7,0.74460703]
[1730767123806,0.12038186,2406.1,2405.8,0.25823116]
[1730767123990,0.61858109,2406.3,2405.6,0.8285]
[1730767124184,0.61858109,2406.3,2405.7,0.25824464]
[1730767124534,0.1654,2406.1,2405.0,0.7646]
[1730767124726,0.1654,2406.1,2405.3,0.7646]
[1730767124880,0.12016899,2406.0,2405.3,0.7646]
[1730767125078,0.12016899,2406.0,2405.4,0.25837757]
[1730767125408,0.12016899,2406.0,2405.3,0.7646]
[1730767126114,0.1654,2405.9,2405.3,0.7646]
[1730767126618,0.12016899,2405.8,2405.3,0.7646]
[1730767126799,0.12016899,2405.8,2405.1,0.7811]
[1730767127000,0.1654,2405.7,2405.2,0.2584607]
[1730767127221,0.1654,2405.7,2405.1,0.7811]
[1730767127880,0.1654,2405.7,2405.1,1.27105127]
[1730767128090,0.1654,2405.7,2405.2,0.25842666]
[1730767128338,0.1654,2405.7,2405.1,1.27105127]
[1730767128541,0.1654,2405.7,2405.2,0.25837859]
[1730767128739,0.1654,2405.7,2405.1,1.27105127]
[1730767128959,0.1654,2405.7,2405.2,0.25838102]
[1730767129171,0.1654,2405.7,2405.1,1.27105127]
[1730767129376,0.1654,2405.7,2405.2,0.25833511]
[1730767129667,0.1654,2406.2,2405.3,4.03525871]
[1730767129864,0.1654,2406.2,2405.5,0.7683]
[1730767130075,0.11967759,2405.6,2405.4,0.40352587]
[1730767130238,0.28507759,2405.6,2405.1,0.4132857]
[1730767130558,0.1654,2405.6,2405.2,0.25832494]
[1730767130764,0.1654,2405.6,2405.0,0.7683]
[1730767130967,0.1654,2405.6,2405.1,0.25835028]
[1730767131163,0.1654,2405.6,2405.0,0.7683]
[1730767131731,0.1654,2405.4,2404.8,1.13699776]
[1730767132442,0.1197595,2405.3,2404.8,0.0598727]
[1730767132837,0.1197595,2405.3,2404.9,0.7557]
[1730767138338,0.1654,2405.6,2405.0,0.38155727]
[1730767138676,0.11857184,2405.2,2405.0,0.38155727]
[1730767138838,0.1654,2405.8,2405.0,0.38155727]
[1730767139283,0.11857184,2405.7,2405.2,0.7566]
[1730767139675,0.1654,2405.9,2405.2,0.7566]
[1730767139874,0.11876848,2405.6,2405.3,0.37566]
[1730767140391,0.1654,2405.9,2405.3,0.37566]
[1730767140900,0.11876848,2405.8,2405.3,0.37566]
[1730767148482,0.1654,2406.1,2405.4,0.7561]
[1730767148708,0.1194402,2405.7,2405.3,0.37566]
[1730767148910,0.1194402,2405.7,2405.2,0.25726135]
[1730767149115,0.1654,2406.1,2405.1,0.7561]
[1730767149317,0.1654,2406.1,2405.2,0.25725387]
[1730767149622,0.1654,2406.1,2405.1,0.7972]
[1730767149922,0.11945658,2406.0,2405.3,0.7972]
[1730767151891,0.11945658,2406.0,2405.4,0.25740618]
[1730767152219,0.11945658,2406.0,2405.3,0.7972]
[1730767152522,0.11945658,2406.0,2405.4,0.25747052]
[1730767152814,0.11945658,2406.0,2405.3,0.7972]
[1730767153023,0.11945658,2406.0,2405.4,0.25747809]
[1730767153324,0.11945658,2406.0,2405.5,0.08313925]
[1730767153493,0.11945658,2406.0,2405.6,1.05465356]
[1730767153822,0.11945658,2406.0,2405.6,0.7972]
[1730767154727,0.11945658,2406.0,2405.7,0.2572934]
[1730767154909,0.1654,2405.9,2405.3,0.8014]
[1730767155230,0.28501221,2405.9,2405.4,0.25735547]
[1730767155393,0.28501221,2405.9,2405.3,1.2433981]
[1730767155731,0.28501221,2405.9,2405.4,0.25737421]
[1730767155910,0.28501221,2405.9,2405.3,0.8014]
[1730767156117,0.28501221,2405.9,2405.4,0.25737633]
[1730767156282,0.1654,2405.8,2405.1,0.41182387]
[1730767156483,0.28491393,2405.8,2405.2,0.25738439]
[1730767156724,0.28491393,2405.8,2405.3,0.25738439]
[1730767156930,0.28491393,2405.8,2405.0,0.8131]
[1730767157226,0.28491393,2405.8,2405.1,0.25740219]
[1730767157379,0.28491393,2405.8,2405.2,0.25740219]
[1730767157586,0.28491393,2405.8,2405.3,0.25740219]
[1730767157802,0.28491393,2405.8,2405.1,0.41186796]
[1730767157985,0.28491393,2405.8,2405.0,1.28354607]
[1730767157986,0.28491393,2405.8,2405.2,0.25741052]
[1730767158185,0.28491393,2405.8,2405.3,0.25741052]
[1730767158439,0.28491393,2405.8,2405.0,1.28354607]
[1730767158583,0.28491393,2405.8,2405.1,0.66931018]
[1730767158784,0.28491393,2405.8,2405.2,0.34056971]
[1730767158983,0.28491393,2405.8,2405.3,0.25742104]
[1730767159219,0.28491393,2405.8,2405.1,0.08314424]
[1730767159524,0.11951393,2405.8,2405.2,1.46295976]
[1730767159826,0.1654,2406.0,2405.3,0.70373388]
[1730767159983,0.1654,2406.0,2405.4,0.2574379]
[1730767160185,0.1194566,2405.9,2405.6,0.7936]
[1730767160784,0.1654,2406.2,2405.6,0.7936]
[1730767161030,0.61858109,2406.3,2405.7,0.34043094]
[1730767161185,0.11957126,2406.1,2405.6,0.7936]
[1730767161387,0.61858109,2406.3,2405.7,0.25728651]
[1730767161595,0.61858109,2406.3,2405.6,0.7936]
[1730767161796,0.61858109,2406.3,2405.7,0.25725424]
[1730767162027,0.61858109,2406.3,2405.6,0.7936]
[1730767162223,0.61858109,2406.3,2405.7,0.25725486]
[1730767162430,0.61858109,2406.3,2405.6,0.7936]
[1730767162732,0.11957126,2406.2,2405.7,0.25730665]
[1730767162893,0.11957126,2406.2,2405.6,0.7936]
[1730767163091,0.11957126,2406.2,2405.7,0.25728959]
[1730767163423,0.11957126,2406.2,2405.6,0.7936]
[1730767163623,0.11957126,2406.2,2405.7,0.25734051]
[1730767163836,0.11957126,2406.2,2405.6,0.7936]
[1730767164123,0.11957126,2406.2,2405.7,0.25735935]
[1730767164427,0.11957126,2406.2,2405.8,0.25735935]
[1730767164629,0.11957126,2406.2,2405.6,0.7936]
[1730767164810,0.11957126,2406.2,2405.7,0.25739508]
[1730767165117,0.11957126,2406.2,2405.8,0.25739508]
[1730767165321,0.11957126,2406.2,2405.6,0.7936]
[1730767165521,0.61858109,2406.3,2405.7,0.25741924]
[1730767165685,0.61858109,2406.3,2405.8,0.25741924]
[1730767165938,0.11986604,2406.2,2405.6,0.7936]
[1730767166133,0.11986604,2406.2,2405.7,0.25743145]
[1730767166437,0.11986604,2406.2,2405.8,0.25743145]
[1730767166772,0.61858109,2406.3,2405.7,0.41196888]
[1730767166983,0.11986604,2406.2,2405.8,0.25747313]
[1730767167272,0.61858109,2406.3,2405.7,0.4120697]
[1730767167458,0.61858109,2406.3,2405.8,0.25753963]
[1730767167657,0.61858109,2406.3,2405.6,0.7936]
[1730767167971,0.11986604,2406.2,2405.7,0.6695736]
[1730767168129,0.11986604,2406.2,2405.8,0.25752236]
[1730767168333,0.11986604,2406.2,2405.9,0.25752236]
[1730767168672,0.61858109,2406.3,2405.7,0.41211451]
[1730767168859,0.61858109,2406.3,2405.8,0.25756812]
[1730767169171,0.12013624,2406.2,2405.7,0.41212757]
[1730767169373,0.61858109,2406.3,2405.8,0.25759071]
[1730767169574,0.61858109,2406.3,2405.7,0.41213871]
[1730767169575,0.12013624,2406.2,2405.7,0.41213871]
[1730767169786,0.61858109,2406.3,2405.8,0.257586]
[1730767169995,0.12013624,2406.2,2405.6,0.7936]
[1730767170177,0.12013624,2406.2,2405.7,0.2575907]
[1730767170379,0.61858109,2406.3,2405.8,0.2575907]
[1730767170583,0.12013624,2406.2,2405.6,0.7936]
[1730767170747,0.61858109,2406.3,2405.7,0.25758546]
[1730767170951,0.12013624,2406.2,2405.6,0.7936]
[1730767171165,0.61858109,2406.3,2405.7,0.25758139]
[1730767171459,0.12013624,2406.2,2405.8,0.25758139]
[1730767171664,0.12013624,2406.2,2405.6,0.7936]
[1730767171851,0.61858109,2406.3,2405.7,0.25757554]
[1730767172047,0.61858109,2406.3,2405.6,0.7936]
[1730767172048,0.61858109,2406.3,2405.8,0.25757554]
[1730767172291,0.12013624,2406.2,2405.6,0.7936]
[1730767172591,0.61858109,2406.3,2405.7,0.2575744]
[1730767172800,0.61858109,2406.3,2405.4,3.51520146]
[1730767172801,0.28553624,2406.2,2405.4,3.51520146]
[1730767172985,0.28553624,2406.2,2405.5,0.66979089]
[1730767173167,0.28553624,2406.2,2405.6,0.66979089]
[1730767173502,0.28553624,2406.2,2405.7,0.25760593]
[1730767173663,0.28553624,2406.2,2405.6,0.41849923]
[1730767173871,0.28553624,2406.2,2405.7,0.25759005]
[1730767174055,0.1654,2406.2,2405.6,0.41849923]
[1730767174259,0.12005437,2406.1,2405.6,0.41849923]
[1730767174457,0.1654,2406.2,2405.6,0.41849923]
[1730767174788,0.1654,2406.2,2405.7,0.25765969]
[1730767174990,0.12003799,2406.1,2405.6,0.41849923]
[1730767175292,0.1654,2406.2,2405.7,0.25767941]
[1730767175469,0.1654,2406.2,2405.8,0.25767941]
[1730767175659,0.1654,2406.2,2405.6,0.41849923]
[1730767175861,0.1654,2406.2,2405.7,0.25766895]
[1730767176055,0.1654,2406.2,2405.8,0.25766895]
[1730767176294,0.1654,2406.2,2405.6,0.41849923]
[1730767176603,0.1654,2406.2,2405.7,0.25767228]
[1730767176781,0.1654,2406.2,2405.6,0.41849923]
[1730767176782,0.1654,2406.2,2405.8,1.13959541]
[1730767177105,0.1654,2406.2,2405.9,0.25767228]
[1730767177290,0.1654,2406.2,2405.8,0.7988]
[1730767177492,0.1654,2406.2,2405.9,0.25764044]
[1730767177695,0.1654,2406.2,2405.8,0.7988]
[1730767178008,0.1654,2406.2,2405.9,0.2576383]
[1730767178159,0.1654,2406.2,2405.8,0.7988]
[1730767178563,0.1654,2406.2,2405.9,0.25765602]
[1730767178857,0.1654,2406.2,2405.8,0.7988]
[1730767179062,0.1654,2406.2,2405.9,0.25763374]
[1730767179295,0.1654,2406.2,2405.8,0.7988]
[1730767179495,0.1654,2406.2,2405.9,0.25765358]
[1730767179656,0.1654,2406.2,2405.8,0.7988]
[1730767179996,0.1654,2406.2,2405.9,0.2576831]
[1730767180192,0.1654,2406.2,2405.8,0.7988]
[1730767180397,0.1654,2406.2,2405.9,0.25771298]
[1730767180604,0.1654,2406.2,2405.8,0.7988]
[1730767180961,0.1654,2406.2,2405.9,0.25771673]
[1730767181165,0.1654,2406.2,2405.8,0.7988]
[1730767181368,0.1654,2406.2,2405.9,0.25772148]
[1730767181562,0.1654,2406.2,2405.8,0.7988]
[1730767181785,0.1654,2406.2,2405.9,0.25774895]
[1730767181985,0.1654,2406.2,2405.8,0.7988]
[1730767182265,0.1654,2406.2,2405.9,0.25774135]
[1730767182465,0.1654,2406.2,2405.8,0.7988]
[1730767182804,0.1654,2406.2,2405.9,0.25775979]
[1730767183098,0.1654,2406.2,2405.8,0.7988]
[1730767183308,0.1654,2406.2,2405.9,0.25775031]
[1730767183611,0.1654,2406.2,2405.8,0.7988]
[1730767183763,0.1654,2406.2,2405.9,0.25776426]
[1730767183969,0.1654,2406.2,2405.8,0.7988]
[1730767184175,0.1654,2406.2,2405.9,0.2577023]
[1730767184504,0.61858109,2406.3,2406.0,0.2577023]
[1730767184749,0.61858109,2406.3,2406.1,0.2577023]
[1730767184890,0.61858109,2406.3,2405.9,0.4121144]
[1730767185091,0.61858109,2406.3,2406.0,0.25756987]
[1730767185402,0.61858109,2406.3,2406.1,0.25756987]
[1730767185621,0.61858109,2406.3,2405.8,0.7988]
[1730767185816,0.61858109,2406.3,2405.9,0.66967958]
[1730767186031,0.12026724,2406.2,2406.0,0.25756312]
[1730767186197,0.12026724,2406.2,2405.8,0.7988]
[1730767186198,0.12026724,2406.2,2406.1,0.25756312]
[1730767186396,0.61858109,2406.3,2406.1,0.25756312]
[1730767186618,0.12026724,2406.2,2405.8,0.7988]
[1730767186828,0.12026724,2406.2,2405.9,0.66980683]
[1730767186987,0.12026724,2406.2,2405.8,1.62531359]
[1730767186988,0.61858109,2406.3,2406.0,0.25761206]
[1730767187191,0.12026724,2406.2,2406.1,0.25761206]
[1730767187428,0.61858109,2406.3,2406.1,0.25761206]
[1730767187633,0.61858109,2406.3,2405.8,1.62531359]
[1730767187835,0.12026724,2406.2,2405.9,1.13246524]
[1730767188030,0.12026724,2406.2,2406.0,0.25766092]
[1730767188343,0.61858109,2406.3,2406.1,0.25766092]
[1730767188634,0.61858109,2406.3,2406.2,0.25769419]
[1730767189291,0.61858109,2406.3,2406.2,0.25770269]
[1730767190224,0.61858109,2406.3,2406.2,5.52385726]
[1730767190401,0.61858109,2406.3,2406.2,9.42779715]
[1730767191693,11.44783671,2408.2,2406.3,3.0]
[1730767191898,0.1654,2407.8,2406.8,0.7662]
[1730767192351,0.1654,2407.8,2406.9,0.2573456]
[1730767192496,0.1654,2407.8,2406.8,0.7662]
[1730767192497,0.1654,2407.6,2406.8,0.7662]
[1730767192699,0.1654,2407.6,2406.9,0.25708558]
[1730767192915,0.1654,2407.6,2406.6,0.7659]
[1730767193214,0.1654,2407.4,2406.7,0.25712233]
[1730767193444,0.1654,2407.4,2406.3,0.7659]
[1730767193731,0.1654,2407.4,2406.4,0.75136651]
[1730767193732,0.11693138,2407.3,2406.4,0.75136651]
[1730767193931,0.1654,2407.2,2406.5,0.25702198]
[1730767194136,0.11700516,2407.1,2406.4,0.41127461]
[1730767194339,0.1654,2407.0,2406.5,0.25703578]
[1730767194494,0.1654,2407.0,2406.3,1.5987443]
[1730767194697,0.1654,2407.0,2406.4,0.71683858]
[1730767195024,0.11700516,2406.9,2406.5,0.25696415]
[1730767195223,0.11700516,2406.9,2406.3,1.5987443]
[1730767195423,0.11700516,2406.9,2406.4,0.25690279]
[1730767195622,0.11700516,2406.9,2406.3,1.5987443]
[1730767195833,0.11700516,2406.9,2406.5,0.2569156]
[1730767195999,0.11700516,2406.9,2406.3,2.0098247]
[1730767196196,0.11700516,2406.9,2406.4,0.25691667]
[1730767196401,0.11700516,2406.9,2406.3,2.0098247]
[1730767196644,0.11700516,2406.9,2406.4,3.75785167]
[1730767196800,0.11700516,2406.9,2406.4,0.50098247]
[1730767197315,0.1654,2407.0,2406.4,0.50098247]
[1730767198427,0.1654,2407.0,2406.5,0.08309895]
[1730767198811,0.1654,2407.0,2406.4,0.50098247]
[1730767200531,0.1654,2407.0,2406.5,0.20997268]
[1730767203524,0.1654,2407.0,2406.5,0.29307135]
[1730767204553,3.0,2407.8,2406.5,0.29307135]
[1730767204712,0.1654,2407.2,2406.6,0.2567736]
[1730767204913,0.1654,2407.2,2406.4,0.7797]
[1730767205119,0.11762019,2407.1,2406.4,0.7797]
[1730767205419,0.1654,2407.2,2406.4,0.7797]
[1730767205745,0.11762019,2407.1,2406.4,0.7797]
[1730767205950,0.1654,2407.2,2406.4,0.7797]
[1730767206313,0.11762019,2407.1,2406.4,0.7797]
[1730767206508,3.0,2407.8,2406.2,1.20621273]
[1730767206509,0.1654,2407.0,2406.2,1.20621273]
[1730767206751,0.1654,2407.0,2406.3,0.34011261]
[1730767206752,0.11765298,2406.9,2406.3,0.34011261]
[1730767207053,0.11765298,2406.9,2406.4,0.25696345]
[1730767207279,0.11765298,2406.9,2406.5,0.87819748]
[1730767207427,0.1654,2407.0,2406.5,0.87819748]
[1730767208059,0.1654,2407.6,2406.5,4.92603419]
[1730767208269,0.1654,2407.5,2406.6,0.25700214]
[1730767208563,0.1654,2407.4,2406.5,4.84293671]
[1730767208871,0.1654,2407.4,2406.6,0.25701755]
[1730767209073,0.11762839,2407.3,2406.7,0.25699913]
[1730767209223,0.11762839,2407.3,2406.5,4.84293671]
[1730767209425,0.11762839,2407.3,2406.6,0.74126888]
[1730767209625,0.11762839,2407.3,2406.7,0.25697521]
[1730767209868,0.11762839,2407.3,2406.8,0.25697521]
[1730767210039,0.11762839,2407.3,2406.6,0.89545708]
[1730767210233,0.11762839,2407.3,2406.7,0.25698615]
[1730767210466,0.11762839,2407.3,2406.8,0.25698615]
[1730767210673,0.11762839,2407.3,2406.7,0.59953799]
[1730767211167,0.1654,2407.4,2406.7,0.59953799]
[1730767211461,0.11780053,2407.3,2406.7,0.59953799]
[1730767211764,0.1654,2407.4,2406.8,0.34015377]
[1730767211935,0.1654,2407.4,2406.8,0.39396918]
[1730767213432,0.1654,2407.4,2406.8,2.1359628]
[1730767213834,0.11797266,2407.3,2407.0,1.74199362]
[1730767214271,0.1654,2407.4,2407.0,1.74199362]
[1730767214631,0.11798086,2407.3,2406.8,2.9651628]
[1730767214845,0.11798086,2407.3,2406.9,0.55363245]
[1730767215044,0.11798086,2407.3,2407.0,0.25711617]
[1730767215285,0.11798086,2407.3,2406.9,0.29651628]
[1730767215481,0.11798086,2407.3,2407.0,0.25711705]
[1730767215782,0.11798086,2407.3,2406.9,0.29651628]
[1730767215946,0.11798086,2407.3,2407.0,0.25711833]
[1730767216276,0.11798086,2407.3,2407.0,0.31248282]
[1730767216888,0.11798086,2407.3,2407.0,2.05447644]
[1730767217091,0.11798086,2407.3,2407.1,0.08307881]
[1730767217258,0.1654,2407.4,2407.1,0.08307881]
[1730767217789,0.11807921,2407.3,2407.1,0.08307849]
[1730767217954,0.1654,2407.4,2407.1,0.25490366]
[1730767218149,0.11807101,2407.3,2407.1,0.25490366]
[1730767218350,0.1654,2407.4,2407.1,0.33798218]
[1730767218570,0.11807101,2407.3,2407.1,0.33798218]
[1730767218753,0.1654,2407.4,2407.1,0.33798218]
[1730767218970,0.11807101,2407.3,2407.1,0.33798218]
[1730767219167,0.1654,2407.6,2407.1,0.33798218]
[1730767219401,0.11807101,2407.5,2407.1,0.33798218]
[1730767219752,0.11807101,2407.5,2407.2,0.7814]
[1730767219976,0.11807101,2407.5,2407.2,1.14230534]
[1730767220198,0.11807101,2407.5,2407.4,1.74199362]
[1730767220352,0.1654,2407.8,2407.4,2.0822015]
[1730767220684,1.00642126,2408.4,2407.6,2.54979362]
[1730767220685,0.11814477,2407.7,2407.6,2.54979362]
[1730767220889,0.11814477,2407.7,2407.6,2.88999276]
[1730767221184,0.1654,2408.3,2407.6,2.63284823]
[1730767221400,0.11814477,2408.2,2407.6,0.8078]
[1730767221695,0.1654,2408.3,2407.7,0.25697046]
[1730767221983,0.11814477,2408.2,2407.7,0.40647705]
[1730767222151,0.1654,2408.3,2407.7,0.40647705]
[1730767222375,0.1654,2408.1,2407.5,0.4106513]
[1730767222701,0.1654,2408.1,2406.9,0.7976]
[1730767222907,0.1654,2407.9,2407.0,0.2567593]
[1730767223093,0.1654,2407.9,2407.1,0.2567593]
[1730767223291,0.1654,2407.7,2406.9,1.2084303]
[1730767223583,0.11849708,2407.6,2407.0,0.78176533]
[1730767223905,0.1654,2407.5,2407.0,0.52496809]
[1730767224215,0.1654,2407.5,2407.1,0.08307561]
[1730767224216,0.28389708,2407.5,2407.1,0.08307561]
[1730767225078,0.28389708,2407.5,2407.0,0.52496809]
[1730767225782,0.28389708,2407.5,2407.1,0.25676902]
[1730767225984,0.28389708,2407.5,2407.1,0.49901689]
[1730767228191,0.11849708,2407.5,2407.2,0.7622]
[1730767228394,0.1654,2407.7,2407.2,0.7622]
[1730767228709,0.11834146,2407.6,2407.1,0.49901689]
[1730767229081,0.1654,2407.5,2407.1,0.49901689]
[1730767229313,0.1654,2407.5,2407.0,0.52496809]
[1730767229521,0.11833326,2407.4,2407.1,0.33992134]
[1730767229726,0.11833326,2407.4,2407.1,0.0830755]
[1730767229911,0.1654,2407.5,2407.1,0.8336755]
[1730767230085,0.1654,2407.5,2407.2,0.25683763]
[1730767230284,0.11836604,2407.4,2407.3,0.33987566]
[1730767230707,0.1654,2407.8,2407.3,0.33987566]
[1730767230912,0.1654,2408.3,2407.4,5.08725092]
[1730767231086,0.1654,2408.3,2407.5,3.25680035]
[1730767231287,0.11836604,2408.2,2407.7,0.7684]
[1730767231786,0.1654,2408.3,2407.7,0.7684]
[1730767231991,0.11846437,2408.2,2407.7,0.7684]
[1730767232182,0.1654,2408.3,2407.7,0.7684]
[1730767232183,0.1654,2408.3,2407.8,0.33967564]
[1730767232501,0.1654,2408.3,2407.7,1.17889291]
[1730767232688,0.1654,2408.3,2407.8,0.2565959]
[1730767232885,0.1654,2408.3,2407.7,1.17889291]
[1730767233115,0.1654,2408.3,2407.8,0.25660219]
[1730767233321,0.1654,2408.3,2407.7,0.7684]
[1730767233617,0.1654,2408.3,2407.8,0.25652712]
[1730767233926,0.1654,2408.3,2407.7,0.7684]
[1730767234144,0.1654,2408.3,2407.8,0.25655358]
[1730767234418,0.1654,2408.3,2407.7,0.7684]
[1730767234598,0.1654,2408.3,2407.8,0.2564846]
[1730767234794,0.1654,2408.3,2407.7,0.7684]
[1730767235107,0.1654,2408.3,2407.8,0.25646987]
[1730767235322,0.1654,2408.3,2407.7,0.7684]
[1730767235489,0.1654,2408.3,2407.8,0.25639507]
[1730767235684,0.1654,2408.3,2407.7,0.7684]
[1730767235919,0.1654,2408.3,2407.5,3.0]